fUST/lending_fUST_20250719
["ID","MTS","AMOUNT","RATE_DAILY","PERIOD"]
[373156647,1752887466275,-434.27510684,0.00018356,2]
[373156648,1752887466284,-460.0,0.00018356,2]
[373156649,1752887466294,-460.0,0.00018356,2]
[373156650,1752887466303,-460.0,0.00018356,2]
[373156651,1752887466313,-684.73,0.00018356,2]
[373156652,1752887466322,-460.0,0.00018356,2]
[373156653,1752887466332,-460.0,0.00018356,2]
[373156654,1752887466341,-460.0,0.00018356,2]
[373156655,1752887466350,-460.0,0.00018356,2]
[373156656,1752887466362,-460.0,0.00018356,2]
[373156657,1752887466371,-460.0,0.00018356,2]
[373156658,1752887466380,-460.0,0.00018356,2]
[373156659,1752887466390,-460.0,0.00018356,2]
[373156660,1752887466400,-460.0,0.00018356,2]
[373156661,1752887466410,-460.0,0.00018356,2]
[373156662,1752887466419,-460.0,0.00018356,2]
[373156663,1752887466429,-1199.93098,0.00018356,2]
[373156664,1752887466439,-460.0,0.00018356,2]
[373156665,1752887466449,-1489.34,0.00018356,2]
[373156666,1752887466458,-1199.93098,0.00018356,2]
[373156667,1752887466468,-1088.39,0.00018356,2]
[373156668,1752887466478,-460.0,0.00018356,2]
[373156669,1752887466488,-460.0,0.00018356,2]
[373156670,1752887466497,-460.0,0.00018356,2]
[373156671,1752887466507,-460.0,0.00018356,2]
[373156672,1752887466516,-460.0,0.00018356,2]
[373156673,1752887466526,-460.0,0.00018356,2]
[373156674,1752887466536,-460.0,0.00018356,2]
[373156675,1752887466546,-460.0,0.00018356,2]
[373156676,1752887466556,-1565.75,0.00018356,2]
[373156677,1752887466567,-460.0,0.00018356,2]
[373156678,1752887466578,-460.0,0.00018356,2]
[373156679,1752887466587,-460.0,0.00018356,2]
[373156680,1752887466596,-574.99062543,0.00018356,2]
[373156681,1752887466606,-460.0,0.00018356,2]
[373156682,1752887466617,-460.0,0.00018356,2]
[373156683,1752887466627,-1848.28,0.00018356,2]
[373156684,1752887466636,-460.0,0.00018356,2]
[373156685,1752887466646,-482.44,0.00018356,2]
[373156686,1752887466656,-2148.2,0.00018356,2]
[373156687,1752887466666,-464.92,0.00018356,2]
[373156688,1752887466676,-460.0,0.00018356,2]
[373156689,1752887466685,-460.0,0.00018356,2]
[373156690,1752887466696,-518.51,0.00018356,2]
[373156691,1752887466706,-460.0,0.00018356,2]
[373156692,1752887466715,-545.24,0.00018356,2]
[373156693,1752887466727,-460.0,0.00018356,2]
[373156694,1752887466737,-460.0,0.00018356,2]
[373156695,1752887466747,-584.2,0.00018356,2]
[373156696,1752887466756,-460.0,0.00018356,2]
[373156697,1752887466765,-3362.66,0.00018356,2]
[373156698,1752887466782,-460.0,0.00018356,2]
[373156699,1752887466792,-460.0,0.00018356,2]
[373156700,1752887466802,-460.0,0.00018356,2]
[373156701,1752887466812,-477.85,0.00018356,2]
[373156702,1752887466823,-460.0,0.00018356,2]
[373156703,1752887466833,-460.0,0.00018356,2]
[373156704,1752887466845,-460.0,0.00018356,2]
[373156705,1752887466855,-838.3,0.00018356,2]
[373156706,1752887466868,-579.24,0.00018356,2]
[373156707,1752887466877,-460.0,0.00018356,2]
[373156708,1752887466887,-520.17098727,0.00018356,2]
[373156709,1752887466896,-460.0,0.00018356,2]
[373156710,1752887466906,-460.0,0.00018356,2]
[373156711,1752887466918,-610.12,0.00018356,2]
[373156712,1752887466927,-460.0,0.00018356,2]
[373156713,1752887466936,-460.0,0.00018356,2]
[373156714,1752887466946,-515.52,0.00018356,2]
[373156715,1752887466955,-460.0,0.00018356,2]
[373156716,1752887466964,-503.83,0.00018356,2]
[373156717,1752887466974,-460.0,0.00018356,2]
[373156718,1752887466983,-487.24,0.00018356,2]
[373156719,1752887466993,-4489.86,0.00018356,2]
[373156720,1752887467003,-460.0,0.00018356,2]
[373156721,1752887467013,-460.0,0.00018356,2]
[373156722,1752887467022,-460.0,0.00018356,2]
[373156723,1752887467032,-460.0,0.00018356,2]
[373156724,1752887467041,-666.5,0.00018356,2]
[373156725,1752887467051,-622.41,0.00018356,2]
[373156726,1752887467060,-460.0,0.00018356,2]
[373156727,1752887467069,-2494.33,0.00018356,2]
[373156728,1752887467079,-592.03,0.00018356,2]
[373156729,1752887467088,-151.0,0.00018356,2]
[373156730,1752887467098,-460.0,0.00018356,2]
[373156731,1752887467109,-460.0,0.00018356,2]
[373156732,1752887467118,-781.0,0.00018356,2]
[373156733,1752887467127,-1924.42,0.00018356,2]
[373156734,1752887467137,-777.69,0.00018356,2]
[373156735,1752887467147,-496.74,0.00018356,2]
[373156736,1752887467158,-151.0,0.00018356,2]
[373156737,1752887467169,-495.0958467,0.00018356,2]
[373156738,1752887467180,-494.0,0.00018356,2]
[373156739,1752887467190,-460.0,0.00018356,2]
[373156740,1752887467199,-1019.11,0.00018356,2]
[373156741,1752887467209,-460.0,0.00018356,2]
[373156742,1752887467219,-564.63,0.00018356,2]
[373156743,1752887467228,-556.53,0.00018356,2]
[373156744,1752887467238,-541.96,0.00018356,2]
[373156745,1752887467247,-539.06990657,0.00018356,2]
[373156746,1752887467257,-460.0,0.00018356,2]
[373156747,1752887467266,-460.0,0.00018356,2]
[373156748,1752887467276,-1447.51,0.00018356,2]
[373156749,1752887467286,-460.0,0.00018356,2]
[373156750,1752887467296,-460.0,0.00018356,2]
[373156751,1752887467305,-460.0,0.00018356,2]
[373156752,1752887467316,-635.79,0.00018356,2]
[373156753,1752887467325,-460.0,0.00018356,2]
[373156754,1752887467335,-1371.73,0.00018356,2]
[373156755,1752887467344,-460.0,0.00018356,2]
[373156756,1752887467354,-1999.99,0.00018356,2]
[373156757,1752887467365,-460.0,0.00018356,2]
[373156758,1752887467375,-4634.36,0.00018356,2]
[373156759,1752887467385,-460.0,0.00018356,2]
[373156760,1752887467394,-460.0,0.00018356,2]
[373156761,1752887467404,-460.0,0.00018356,2]
[373156762,1752887467413,-460.0,0.00018356,2]
[373156763,1752887467423,-2972.84,0.00018356,2]
[373156764,1752887467433,-460.0,0.00018356,2]
[373156765,1752887467443,-551.48,0.00018356,2]
[373156766,1752887467453,-601.43423616,0.00018356,2]
[373156767,1752887467463,-460.0,0.00018356,2]
[373156768,1752887467473,-692.09,0.00018356,2]
[373156769,1752887467483,-160.0,0.00018375,2]
[373156770,1752887467492,-2636.49776504,0.00018383,2]
[373156771,1752887467503,-500.0,0.00018557,2]
[373156772,1752887467512,-500.0,0.00018557,2]
[373156773,1752887467522,-500.0,0.00018557,2]
[373156774,1752887467531,-1670.97728946,0.00018616,2]
[373156775,1752887467541,-500.0,0.00018624,2]
[373156776,1752887467550,-500.0,0.00018624,2]
[373156777,1752887467560,-2636.49776504,0.00018624,2]
[373156778,1752887467569,-460.0,0.0001863,2]
[373156779,1752887467579,-828.36,0.0001863,2]
[373156780,1752887467694,-460.0,0.0001863,2]
[373156781,1752887467704,-460.0,0.0001863,2]
[373156782,1752887467714,-460.0,0.0001863,2]
[373156783,1752887467723,-460.0,0.0001863,2]
[373156784,1752887467732,-460.0,0.0001863,2]
[373156785,1752887467741,-460.0,0.0001863,2]
[373156786,1752887467751,-460.0,0.0001863,2]
[373156787,1752887467760,-460.0,0.0001863,2]
[373156788,1752887467769,-460.0,0.0001863,2]
[373156789,1752887467779,-524.31,0.0001863,2]
[373156790,1752887467790,-460.0,0.0001863,2]
[373156791,1752887467799,-591.67124093,0.0001863,2]
[373156792,1752887467808,-460.0,0.0001863,2]
[373156793,1752887467817,-460.0,0.0001863,2]
[373156794,1752887467826,-460.0,0.0001863,2]
[373156795,1752887467835,-460.0,0.0001863,2]
[373156796,1752887467845,-460.0,0.0001863,2]
[373156797,1752887467855,-574.75653808,0.0001863,2]
[373156798,1752887467866,-460.0,0.0001863,2]
[373156799,1752887467875,-460.0,0.0001863,2]
[373156800,1752887467884,-460.0,0.0001863,2]
[373156801,1752887467894,-536.6,0.0001863,2]
[373156802,1752887467903,-460.0,0.0001863,2]
[373156803,1752887467912,-460.0,0.0001863,2]
[373156804,1752887467921,-460.0,0.0001863,2]
[373156805,1752887467930,-460.0,0.0001863,2]
[373156806,1752887467939,-460.0,0.0001863,2]
[373156807,1752887467948,-460.0,0.0001863,2]
[373156808,1752887467957,-460.0,0.0001863,2]
[373156809,1752887467966,-460.0,0.0001863,2]
[373156810,1752887467975,-460.0,0.0001863,2]
[373156811,1752887467985,-559.02,0.0001863,2]
[373156812,1752887467994,-460.0,0.0001863,2]
[373156813,1752887468003,-770.38,0.0001863,2]
[373156814,1752887468012,-460.0,0.0001863,2]
[373156815,1752887468021,-480.33,0.0001863,2]
[373156816,1752887468031,-526.17,0.0001863,2]
[373156817,1752887468041,-418.3573526,0.0001863,2]
[373156818,1752887468050,-460.0,0.0001863,2]
[373156819,1752887468059,-460.0,0.0001863,2]
[373156820,1752887468068,-460.0,0.0001863,2]
[373156821,1752887468077,-460.0,0.0001863,2]
[373156822,1752887468086,-189.44461471,0.0001863,2]
[373156823,1752887468096,-460.0,0.0001863,2]
[373156824,1752887468105,-460.0,0.0001863,2]
[373156825,1752887468118,-460.0,0.0001863,2]
[373156826,1752887468127,-460.0,0.0001863,2]
[373156827,1752887468136,-460.0,0.0001863,2]
[373156828,1752887468145,-490.15,0.0001863,2]
[373156829,1752887468155,-460.0,0.0001863,2]
[373156830,1752887468164,-460.0,0.0001863,2]
[373156831,1752887468173,-460.0,0.0001863,2]
[373156832,1752887468183,-460.0,0.0001863,2]
[373156833,1752887468192,-151.0,0.0001863,2]
[373156834,1752887468202,-460.0,0.0001863,2]
[373156835,1752887468211,-460.0,0.0001863,2]
[373156836,1752887468221,-460.0,0.0001863,2]
[373156837,1752887468230,-684.73,0.0001863,2]
[373156838,1752887468239,-151.0,0.0001863,2]
[373156839,1752887468247,-460.0,0.0001863,2]
[373156840,1752887468258,-460.0,0.0001863,2]
[373156841,1752887468267,-460.0,0.0001863,2]
[373156842,1752887468277,-460.0,0.0001863,2]
[373156843,1752887468286,-460.0,0.0001863,2]
[373156844,1752887468295,-460.0,0.0001863,2]
[373156845,1752887468304,-460.0,0.0001863,2]
[373156846,1752887468313,-460.0,0.0001863,2]
[373156847,1752887468324,-1489.34,0.0001863,2]
[373156848,1752887468333,-1088.39,0.0001863,2]
[373156849,1752887468342,-460.0,0.0001863,2]
[373156850,1752887468351,-460.0,0.0001863,2]
[373156851,1752887468362,-460.0,0.0001863,2]
[373156852,1752887468371,-460.0,0.0001863,2]
[373156853,1752887468380,-460.0,0.0001863,2]
[373156854,1752887468389,-460.0,0.0001863,2]
[373156855,1752887468399,-460.0,0.0001863,2]
[373156856,1752887468408,-460.0,0.0001863,2]
[373156857,1752887468418,-1565.75,0.0001863,2]
[373156858,1752887468427,-460.0,0.0001863,2]
[373156859,1752887468436,-460.0,0.0001863,2]
[373156860,1752887468446,-460.0,0.0001863,2]
[373156861,1752887468455,-369.76654152,0.0001863,2]
[373156862,1752887468464,-460.0,0.0001863,2]
[373156863,1752887468473,-460.0,0.0001863,2]
[373156864,1752887468482,-1848.28,0.0001863,2]
[373156865,1752887468492,-482.44,0.0001863,2]
[373156866,1752887468502,-2148.2,0.0001863,2]
[373156867,1752887468511,-464.92,0.0001863,2]
[373156868,1752887468521,-460.0,0.0001863,2]
[373156869,1752887468531,-460.0,0.0001863,2]
[373156870,1752887468541,-518.51,0.0001863,2]
[373156871,1752887468550,-460.0,0.0001863,2]
[373156872,1752887468560,-545.24,0.0001863,2]
[373156873,1752887468570,-460.0,0.0001863,2]
[373156874,1752887468579,-460.0,0.0001863,2]
[373156875,1752887468588,-460.0,0.0001863,2]
[373156876,1752887468597,-3362.66,0.0001863,2]
[373156877,1752887468608,-460.0,0.0001863,2]
[373156878,1752887468622,-460.0,0.0001863,2]
[373156879,1752887468632,-460.0,0.0001863,2]
[373156880,1752887468643,-477.85,0.0001863,2]
[373156881,1752887468652,-467.94557621,0.0001863,2]
[373156882,1752887468662,-221.02,0.0001863,2]
[373156883,1752887468671,-460.0,0.0001863,2]
[373156884,1752887468681,-838.3,0.0001863,2]
[373156885,1752887468690,-151.0,0.0001863,2]
[373156886,1752887468700,-579.24,0.0001863,2]
[373156887,1752887468710,-460.0,0.0001863,2]
[373156888,1752887468719,-460.0,0.0001863,2]
[373156889,1752887468728,-460.0,0.0001863,2]
[373156890,1752887468738,-610.12,0.0001863,2]
[373156891,1752887468747,-460.0,0.0001863,2]
[373156892,1752887468756,-515.52,0.0001863,2]
[373156893,1752887468766,-460.0,0.0001863,2]
[373156894,1752887468776,-460.0,0.0001863,2]
[373156895,1752887468789,-503.83,0.0001863,2]
[373156896,1752887468798,-460.0,0.0001863,2]
[373156897,1752887468807,-487.24,0.0001863,2]
[373156898,1752887468818,-4489.86,0.0001863,2]
[373156899,1752887468828,-460.0,0.0001863,2]
[373156900,1752887468840,-282.43719494,0.0001863,2]
[373156901,1752887468850,-460.0,0.0001863,2]
[373156902,1752887468861,-460.0,0.0001863,2]
[373156903,1752887468870,-290.266198,0.0001863,2]
[373156904,1752887468880,-622.41,0.0001863,2]
[373156905,1752887468889,-666.5,0.0001863,2]
[373156906,1752887468898,-290.266198,0.0001863,2]
[373156907,1752887468908,-460.0,0.0001863,2]
[373156908,1752887468917,-2494.33,0.0001863,2]
[373156909,1752887468927,-592.03,0.0001863,2]
[373156910,1752887468937,-460.0,0.0001863,2]
[373156911,1752887468947,-151.0,0.0001863,2]
[373156912,1752887468956,-466.08153271,0.0001863,2]
[373156913,1752887468965,-781.0,0.0001863,2]
[373156914,1752887468976,-777.69,0.0001863,2]
[373156915,1752887468987,-1924.42,0.0001863,2]
[373156916,1752887468996,-496.74,0.0001863,2]
[373156917,1752887469006,-494.0,0.0001863,2]
[373156918,1752887469016,-460.0,0.0001863,2]
[373156919,1752887469027,-1019.11,0.0001863,2]
[373156920,1752887469038,-460.0,0.0001863,2]
[373156921,1752887469048,-564.63,0.0001863,2]
[373156922,1752887469058,-556.53,0.0001863,2]
[373156923,1752887469067,-541.96,0.0001863,2]
[373156924,1752887469077,-460.0,0.0001863,2]
[373156925,1752887469087,-460.0,0.0001863,2]
[373156926,1752887469097,-1447.51,0.0001863,2]
[373156927,1752887469108,-460.0,0.0001863,2]
[373156928,1752887469120,-460.0,0.0001863,2]
[373156929,1752887469129,-580.49434951,0.0001863,2]
[373156930,1752887469139,-635.79,0.0001863,2]
[373156931,1752887469148,-460.0,0.0001863,2]
[373156932,1752887469157,-1371.73,0.0001863,2]
[373156933,1752887469169,-460.0,0.0001863,2]
[373156934,1752887469180,-1999.99,0.0001863,2]
[373156935,1752887469191,-460.0,0.0001863,2]
[373156936,1752887469200,-4634.36,0.0001863,2]
[373156937,1752887469210,-460.0,0.0001863,2]
[373156938,1752887469220,-460.0,0.0001863,2]
[373156939,1752887469229,-460.0,0.0001863,2]
[373156940,1752887469238,-460.0,0.0001863,2]
[373156941,1752887469248,-2972.84,0.0001863,2]
[373156942,1752887469257,-460.0,0.0001863,2]
[373156943,1752887469266,-551.48,0.0001863,2]
[373156944,1752887469276,-460.0,0.0001863,2]
[373156945,1752887469285,-692.09,0.0001863,2]
[373156946,1752887469295,-7370.11294294,0.00018804,2]
[373156947,1752887469304,-2636.49776504,0.00018866,2]
[373156948,1752887469313,-1500.0,0.00018888,2]
[373156949,1752887469324,-150.0,0.000189,2]
[373156950,1752887469333,-460.0,0.00018904,2]
[373156951,1752887469342,-828.36,0.00018904,2]
[373156952,1752887469352,-460.0,0.00018904,2]
[373156953,1752887469363,-460.0,0.00018904,2]
[373156954,1752887469373,-555.1945519,0.00018904,2]
[373156955,1752887469382,-460.0,0.00018904,2]
[373156956,1752887469392,-159.61854329,0.00018904,2]
[373156957,1752887469402,-460.0,0.00018904,2]
[373156958,1752887469413,-460.0,0.00018904,2]
[373156959,1752887469423,-460.0,0.00018904,2]
[373156960,1752887469434,-524.31,0.00018904,2]
[373156961,1752887469445,-460.0,0.00018904,2]
[373156962,1752887469455,-460.0,0.00018904,2]
[373156963,1752887469465,-460.0,0.00018904,2]
[373156964,1752887469475,-402.73332683,0.00018904,2]
[373156965,1752887469485,-460.0,0.00018904,2]
[373156966,1752887469495,-460.0,0.00018904,2]
[373156967,1752887469505,-460.0,0.00018904,2]
[373156968,1752887469514,-460.0,0.00018904,2]
[373156969,1752887469524,-460.0,0.00018904,2]
[373156970,1752887469533,-460.0,0.00018904,2]
[373156971,1752887469544,-460.0,0.00018904,2]
[373156972,1752887469553,-460.0,0.00018904,2]
[373156973,1752887469562,-460.0,0.00018904,2]
[373156974,1752887469571,-460.0,0.00018904,2]
[373156975,1752887469579,-460.0,0.00018904,2]
[373156976,1752887469587,-460.0,0.00018904,2]
[373156977,1752887469595,-460.0,0.00018904,2]
[373156978,1752887469604,-460.0,0.00018904,2]
[373156979,1752887469614,-559.02,0.00018904,2]
[373156980,1752887469623,-267.75515917,0.00018904,2]
[373156981,1752887469633,-770.38,0.00018904,2]
[373156982,1752887469642,-480.33,0.00018904,2]
[373156983,1752887469652,-460.0,0.00018904,2]
[373156984,1752887469661,-526.17,0.00018904,2]
[373156985,1752887469671,-460.0,0.00018904,2]
[373156986,1752887469682,-460.0,0.00018904,2]
[373156987,1752887469691,-460.0,0.00018904,2]
[373156988,1752887469701,-463.67983135,0.00018904,2]
[373156989,1752887469710,-151.0,0.00018904,2]
[373156990,1752887469721,-460.0,0.00018904,2]
[373156991,1752887469730,-460.0,0.00018904,2]
[373156992,1752887469739,-460.0,0.00018904,2]
[373156993,1752887469749,-460.0,0.00018904,2]
[373156994,1752887469758,-490.15,0.00018904,2]
[373156995,1752887469768,-460.0,0.00018904,2]
[373156996,1752887469778,-460.0,0.00018904,2]
[373156997,1752887469789,-460.0,0.00018904,2]
[373156998,1752887469798,-460.0,0.00018904,2]
[373156999,1752887469807,-460.0,0.00018904,2]
[373157000,1752887469818,-460.0,0.00018904,2]
[373157001,1752887469828,-684.73,0.00018904,2]
[373157002,1752887469837,-151.0,0.00018904,2]
[373157003,1752887469847,-460.0,0.00018904,2]
[373157004,1752887469858,-460.0,0.00018904,2]
[373157005,1752887469870,-460.0,0.00018904,2]
[373157006,1752887469879,-460.0,0.00018904,2]
[373157007,1752887469888,-460.0,0.00018904,2]
[373157008,1752887469898,-460.0,0.00018904,2]
[373157009,1752887469907,-460.0,0.00018904,2]
[373157010,1752887469917,-460.0,0.00018904,2]
[373157011,1752887469927,-1489.34,0.00018904,2]
[373157012,1752887469936,-1088.39,0.00018904,2]
[373157013,1752887469946,-460.0,0.00018904,2]
[373157014,1752887469955,-460.0,0.00018904,2]
[373157015,1752887469964,-460.0,0.00018904,2]
[373157016,1752887469973,-460.0,0.00018904,2]
[373157017,1752887469983,-460.0,0.00018904,2]
[373157018,1752887469993,-460.0,0.00018904,2]
[373157019,1752887470003,-460.0,0.00018904,2]
[373157020,1752887470012,-460.0,0.00018904,2]
[373157021,1752887470021,-460.0,0.00018904,2]
[373157022,1752887470030,-460.0,0.00018904,2]
[373157023,1752887470039,-460.0,0.00018904,2]
[373157024,1752887470050,-460.0,0.00018904,2]
[373157025,1752887470061,-1848.28,0.00018904,2]
[373157026,1752887470071,-482.44,0.00018904,2]
[373157027,1752887470180,-2148.2,0.00018904,2]
[373157028,1752887470190,-464.92,0.00018904,2]
[373157029,1752887470200,-464.20634618,0.00018904,2]
[373157030,1752887470209,-460.0,0.00018904,2]
[373157031,1752887470219,-518.51,0.00018904,2]
[373157032,1752887470229,-460.0,0.00018904,2]
[373157033,1752887470238,-545.24,0.00018904,2]
[373157034,1752887470247,-460.0,0.00018904,2]
[373157035,1752887470257,-460.0,0.00018904,2]
[373157036,1752887470267,-200.84253818,0.00018904,2]
[373157037,1752887470276,-3362.66,0.00018904,2]
[373157038,1752887470286,-460.0,0.00018904,2]
[373157039,1752887470295,-460.0,0.00018904,2]
[373157040,1752887470305,-460.0,0.00018904,2]
[373157041,1752887470314,-477.85,0.00018904,2]
[373157042,1752887470324,-460.0,0.00018904,2]
[373157043,1752887470333,-838.3,0.00018904,2]
[373157044,1752887470343,-579.24,0.00018904,2]
[373157045,1752887470352,-460.0,0.00018904,2]
[373157046,1752887470363,-460.0,0.00018904,2]
[373157047,1752887470372,-460.0,0.00018904,2]
[373157048,1752887470381,-610.12,0.00018904,2]
[373157049,1752887470391,-460.0,0.00018904,2]
[373157050,1752887470400,-515.52,0.00018904,2]
[373157051,1752887470410,-460.0,0.00018904,2]
[373157052,1752887470419,-503.83,0.00018904,2]
[373157053,1752887470430,-460.0,0.00018904,2]
[373157054,1752887470439,-487.24,0.00018904,2]
[373157055,1752887470449,-4489.86,0.00018904,2]
[373157056,1752887470459,-460.0,0.00018904,2]
[373157057,1752887470468,-460.0,0.00018904,2]
[373157058,1752887470478,-427.76702256,0.00018904,2]
[373157059,1752887470487,-622.41,0.00018904,2]
[373157060,1752887470496,-666.5,0.00018904,2]
[373157061,1752887470506,-460.0,0.00018904,2]
[373157062,1752887470516,-2494.33,0.00018904,2]
[373157063,1752887470526,-592.03,0.00018904,2]
[373157064,1752887470535,-559.33680306,0.00018904,2]
[373157065,1752887470545,-781.0,0.00018904,2]
[373157066,1752887470555,-777.69,0.00018904,2]
[373157067,1752887470565,-1924.42,0.00018904,2]
[373157068,1752887470575,-496.74,0.00018904,2]
[373157069,1752887470585,-494.0,0.00018904,2]
[373157070,1752887470595,-460.0,0.00018904,2]
[373157071,1752887470605,-1019.11,0.00018904,2]
[373157072,1752887470616,-460.0,0.00018904,2]
[373157073,1752887470625,-564.63,0.00018904,2]
[373157074,1752887470635,-556.53,0.00018904,2]
[373157075,1752887470644,-541.96,0.00018904,2]
[373157076,1752887470654,-460.0,0.00018904,2]
[373157077,1752887470666,-460.0,0.00018904,2]
[373157078,1752887470677,-1447.51,0.00018904,2]
[373157079,1752887470687,-460.0,0.00018904,2]
[373157080,1752887470696,-460.0,0.00018904,2]
[373157081,1752887470707,-635.79,0.00018904,2]
[373157082,1752887470717,-460.0,0.00018904,2]
[373157083,1752887470728,-1371.73,0.00018904,2]
[373157084,1752887470738,-460.0,0.00018904,2]
[373157085,1752887470749,-1999.99,0.00018904,2]
[373157086,1752887470760,-460.0,0.00018904,2]
[373157087,1752887470770,-4634.36,0.00018904,2]
[373157088,1752887470784,-460.0,0.00018904,2]
[373157089,1752887470794,-460.0,0.00018904,2]
[373157090,1752887470804,-460.0,0.00018904,2]
[373157091,1752887470814,-460.0,0.00018904,2]
[373157092,1752887470824,-2972.84,0.00018904,2]
[373157093,1752887470834,-460.0,0.00018904,2]
[373157094,1752887470844,-551.48,0.00018904,2]
[373157095,1752887470856,-460.0,0.00018904,2]
[373157096,1752887470866,-692.09,0.00018904,2]
[373157097,1752887470876,-260.0,0.00018923,2]
[373157098,1752887470886,-357.483414,0.00018983,2]
[373157099,1752887470897,-1000.0,0.00019105,2]
[373157100,1752887470908,-2636.49776504,0.00019107,2]
[373157101,1752887470918,-2175.95959532,0.00019178,2]
[373157102,1752887470930,-460.0,0.00019178,2]
[373157103,1752887470939,-828.36,0.00019178,2]
[373157104,1752887470948,-460.0,0.00019178,2]
[373157105,1752887470957,-460.0,0.00019178,2]
[373157106,1752887470966,-460.0,0.00019178,2]
[373157107,1752887470973,-460.0,0.00019178,2]
[373157108,1752887470981,-524.31,0.00019178,2]
[373157109,1752887470989,-460.0,0.00019178,2]
[373157110,1752887470997,-460.0,0.00019178,2]
[373157111,1752887471007,-460.0,0.00019178,2]
[373157112,1752887471016,-460.0,0.00019178,2]
[373157113,1752887471025,-460.0,0.00019178,2]
[373157114,1752887471034,-460.0,0.00019178,2]
[373157115,1752887471044,-460.0,0.00019178,2]
[373157116,1752887471054,-460.0,0.00019178,2]
[373157117,1752887471066,-460.0,0.00019178,2]
[373157118,1752887471075,-460.0,0.00019178,2]
[373157119,1752887471084,-460.0,0.00019178,2]
[373157120,1752887471094,-460.0,0.00019178,2]
[373157121,1752887471103,-460.0,0.00019178,2]
[373157122,1752887471113,-460.0,0.00019178,2]
[373157123,1752887471122,-460.0,0.00019178,2]
[373157124,1752887471131,-559.02,0.00019178,2]
[373157125,1752887471141,-770.38,0.00019178,2]
[373157126,1752887471151,-480.33,0.00019178,2]
[373157127,1752887471161,-460.0,0.00019178,2]
[373157128,1752887471171,-151.0,0.00019178,2]
[373157129,1752887471181,-526.17,0.00019178,2]
[373157130,1752887471190,-151.0,0.00019178,2]
[373157131,1752887471202,-460.0,0.00019178,2]
[373157132,1752887471212,-460.0,0.00019178,2]
[373157133,1752887471222,-309.12324097,0.00019178,2]
[373157134,1752887471232,-460.0,0.00019178,2]
[373157135,1752887471241,-460.0,0.00019178,2]
[373157136,1752887471251,-460.0,0.00019178,2]
[373157137,1752887471260,-460.0,0.00019178,2]
[373157138,1752887471270,-490.15,0.00019178,2]
[373157139,1752887471279,-460.0,0.00019178,2]
[373157140,1752887471289,-151.0,0.00019178,2]
[373157141,1752887471300,-228.25636124,0.00019178,2]
[373157142,1752887471309,-483.14897103,0.00019178,2]
[373157143,1752887471319,-460.0,0.00019178,2]
[373157144,1752887471328,-684.73,0.00019178,2]
[373157145,1752887471339,-460.0,0.00019178,2]
[373157146,1752887471350,-460.0,0.00019178,2]